[Event "ONJK 2024 ABC"]
[Site "Velp, Netherlands"]
[Date "2024.08.07"]
[Round "8.6"]
[White "Kool, Jesper"]
[Black "Blok, Xaveer"]
[Result "1/2-1/2"]
[TimeControl "90 minutes + 30 seconds"]
[WhiteElo "1823"]
[BlackElo "1885"]

1. e4 {[%clk 01:30:59]} c5 {[%clk 01:30:57]} {[%emt 00:00:04]} 2. c3 {[%clk
01:31:26]} {[%emt 00:00:02]} d5 {[%clk 01:31:16]} {[%emt 00:00:11]} 3. exd5
{[%clk 01:31:52]} {[%emt 00:00:04]} Qxd5 {[%clk 01:31:40]} {[%emt 00:00:06]} 4.
d4 {[%clk 01:32:20]} {[%emt 00:00:03]} Nf6 {[%clk 01:31:41]} {[%emt 00:00:29]}
5. Nf3 {[%clk 01:32:11]} {[%emt 00:00:39]} Bg4 {[%clk 01:32:02]} {[%emt
00:00:08]} 6. Be2 {[%clk 01:32:14]} {[%emt 00:00:28]} e6 {[%clk 01:32:22]}
{[%emt 00:00:09]} 7. Be3 {[%clk 01:31:36]} {[%emt 00:01:08]} cxd4 {[%clk
01:31:26]} {[%emt 00:01:26]} 8. Bxd4 {[%clk 01:25:33]} {[%emt 00:06:33]} Be7
{[%clk 01:31:06]} {[%emt 00:00:50]} 9. Qa4+ {[%clk 01:25:03]} {[%emt 00:01:01]}
Nfd7 {[%clk 01:21:07]} {[%emt 00:10:28]} 10. Bxg7 {[%clk 01:21:00]} {[%emt
00:04:34]} Rg8 {[%clk 01:21:18]} {[%emt 00:00:18]} 11. Qxg4 {[%clk 01:21:01]}
{[%emt 00:00:29]} Bf6 {[%clk 01:20:10]} {[%emt 00:01:38]} 12. Qc4 {[%clk
01:20:51]} {[%emt 00:00:42]} Qxc4 {[%clk 01:19:09]} {[%emt 00:01:31]} 13. Bxc4
{[%clk 01:21:14]} {[%emt 00:00:06]} Rxg7 {[%clk 01:19:28]} {[%emt 00:00:11]} 14.
O-O {[%clk 01:20:31]} {[%emt 00:01:14]} Nc6 {[%clk 01:19:43]} {[%emt 00:00:13]}
15. Nbd2 {[%clk 01:19:59]} {[%emt 00:01:03]} O-O-O {[%clk 01:19:13]} {[%emt
00:01:00]} 16. Bb5 {[%clk 01:17:54]} {[%emt 00:02:36]} h5 {[%clk 01:16:58]}
{[%emt 00:02:44]} 17. Ne4 {[%clk 01:16:02]} {[%emt 00:02:23]} Be7 {[%clk
01:16:21]} {[%emt 00:01:06]} 18. Bxc6 {[%clk 01:14:39]} {[%emt 00:01:54]} bxc6
{[%clk 01:16:39]} {[%emt 00:00:11]} 19. Rad1 {[%clk 01:12:40]} {[%emt
00:02:30]} Kc7 {[%clk 01:14:37]} {[%emt 00:02:31]} 20. Rd2 {[%clk 01:09:19]}
{[%emt 00:03:51]} Rdg8 {[%clk 01:13:57]} {[%emt 00:01:09]} 21. g3 {[%clk
01:07:43]} {[%emt 00:02:07]} f5 {[%clk 01:14:00]} {[%emt 00:00:27]} 22. Rfd1
{[%clk 01:07:56]} {[%emt 00:00:17]} Nb6 {[%clk 01:10:31]} {[%emt 00:04:00]} 23.
Nd6 {[%clk 01:05:05]} {[%emt 00:03:20]} Rd8 {[%clk 01:10:37]} {[%emt 00:00:24]}
24. c4 {[%clk 01:04:53]} {[%emt 00:00:42]} Rxd6 {[%clk 01:07:04]} {[%emt
00:04:02]} 25. c5 {[%clk 01:05:11]} {[%emt 00:00:13]} Rxd2 {[%clk 01:07:16]}
{[%emt 00:00:17]} 26. cxb6+ {[%clk 01:05:34]} {[%emt 00:00:07]} axb6 {[%clk
01:07:18]} {[%emt 00:00:29]} 27. Rxd2 {[%clk 01:05:32]} {[%emt 00:00:32]} Bf6
{[%clk 01:06:04]} {[%emt 00:01:43]} 28. Re2 {[%clk 01:01:42]} {[%emt 00:04:15]}
Re7 {[%clk 01:05:32]} {[%emt 00:01:08]} 29. Ne1 {[%clk 00:59:30]} {[%emt
00:02:41]} e5 {[%clk 01:02:38]} {[%emt 00:03:24]} 1/2-1/2

[Event "ONJK 2024 ABC"]
[Site "Velp, Netherlands"]
[Date "2024.08.07"]
[Round "8.7"]
[White "Sapulette, Jay-Giani"]
[Black "Madularea, David"]
[Result "0-1"]
[TimeControl "90 minutes + 30 seconds"]
[WhiteElo "1746"]
[BlackElo "2190"]

1. e4 {[%clk 01:30:58]} {[%emt 00:00:02]} c5 {[%clk 01:30:57]} {[%emt
00:00:04]} 2. Nf3 {[%clk 01:31:24]} {[%emt 00:00:04]} d6 {[%clk 01:31:23]}
{[%emt 00:00:04]} 3. d4 {[%clk 01:31:51]} {[%emt 00:00:03]} cxd4 {[%clk
01:31:50]} {[%emt 00:00:04]} 4. Nxd4 {[%clk 01:32:18]} {[%emt 00:00:03]} Nf6
{[%clk 01:31:57]} {[%emt 00:00:23]} 5. Nc3 {[%clk 01:32:43]} {[%emt 00:00:05]}
a6 {[%clk 01:32:22]} {[%emt 00:00:04]} 6. f4 {[%clk 01:32:58]} {[%emt
00:00:15]} g6 {[%clk 01:32:44]} {[%emt 00:00:08]} 7. Be2 {[%clk 01:32:56]}
{[%emt 00:00:31]} Nc6 {[%clk 01:29:30]} {[%emt 00:03:45]} 8. Be3 {[%clk
01:28:40]} {[%emt 00:04:45]} h5 {[%clk 01:25:27]} {[%emt 00:04:34]} 9. h3
{[%clk 01:24:27]} {[%emt 00:04:43]} Bd7 {[%clk 01:25:32]} {[%emt 00:00:25]} 10.
O-O {[%clk 01:22:42]} {[%emt 00:02:15]} Bg7 {[%clk 01:25:41]} {[%emt 00:00:20]}
11. a3 {[%clk 01:17:58]} {[%emt 00:05:15]} b5 {[%clk 01:25:31]} {[%emt
00:00:40]} 12. Bf3 {[%clk 01:16:15]} {[%emt 00:02:13]} Rc8 {[%clk 01:22:47]}
{[%emt 00:03:14]} 13. Qd2 {[%clk 01:06:37]} {[%emt 00:10:07]} O-O {[%clk
01:21:23]} {[%emt 00:01:55]} 14. Rad1 {[%clk 01:01:56]} {[%emt 00:05:11]} Qc7
{[%clk 01:17:32]} {[%emt 00:04:21]} 15. Qf2 {[%clk 00:55:30]} {[%emt 00:06:55]}
Na5 {[%clk 01:14:30]} {[%emt 00:03:32]} 16. Be2 {[%clk 00:24:43]} {[%emt
00:31:17]} Nc4 {[%clk 01:13:04]} {[%emt 00:01:54]} 17. Bxc4 {[%clk 00:24:40]}
{[%emt 00:00:36]} Qxc4 {[%clk 01:12:42]} {[%emt 00:00:52]} 18. Qh4 {[%clk
00:22:32]} {[%emt 00:02:37]} b4 {[%clk 01:03:57]} {[%emt 00:09:16]} 19. axb4
{[%clk 00:21:33]} {[%emt 00:01:29]} Qxb4 {[%clk 01:04:19]} {[%emt 00:00:07]} 20.
Nb3 {[%clk 00:21:40]} {[%emt 00:00:23]} Rxc3 {[%clk 00:47:30]} {[%emt
00:17:19]} 21. bxc3 {[%clk 00:21:38]} {[%emt 00:00:33]} Qxc3 {[%clk 00:47:47]}
{[%emt 00:00:11]} 22. Bd4 {[%clk 00:17:34]} {[%emt 00:04:35]} Qxc2 {[%clk
00:48:00]} {[%emt 00:00:16]} 23. Bxf6 {[%clk 00:17:53]} {[%emt 00:00:12]} Bxf6
{[%clk 00:48:13]} {[%emt 00:00:16]} 24. Qg3 {[%clk 00:18:06]} {[%emt 00:00:18]}
Ba4 {[%clk 00:38:46]} {[%emt 00:09:57]} 25. Rb1 {[%clk 00:13:58]} {[%emt
00:04:38]} Rb8 {[%clk 00:37:51]} {[%emt 00:01:25]} 26. e5 {[%clk 00:11:08]}
{[%emt 00:03:20]} Bg7 {[%clk 00:34:03]} {[%emt 00:04:17]} 27. exd6 {[%clk
00:08:03]} {[%emt 00:03:36]} exd6 {[%clk 00:34:22]} {[%emt 00:00:11]} 28. Rfc1
{[%clk 00:07:47]} {[%emt 00:00:47]} Rxb3 {[%clk 00:34:09]} {[%emt 00:00:42]}
0-1

[Event "ONJK 2024 ABC"]
[Site "Velp, Netherlands"]
[Date "2024.08.07"]
[Round "8.8"]
[White "Frederiks, Jesse"]
[Black "Musabayev, Maxim"]
[Result "1/2-1/2"]
[TimeControl "90 minutes + 30 seconds"]
[WhiteElo "1757"]
[BlackElo "1824"]

1. d4 {[%clk 01:30:55]} {[%emt 00:00:05]} d5 {[%clk 01:29:50]} {[%emt
00:01:11]} 2. Nf3 {[%clk 01:31:00]} {[%emt 00:00:24]} e6 {[%clk 01:29:09]}
{[%emt 00:01:11]} 3. e3 {[%clk 01:30:10]} {[%emt 00:01:20]} c5 {[%clk
01:29:11]} {[%emt 00:00:29]} 4. Be2 {[%clk 01:30:02]} {[%emt 00:00:38]} Nf6
{[%clk 01:28:23]} {[%emt 00:01:18]} 5. O-O {[%clk 01:29:49]} {[%emt 00:00:42]}
Nbd7 {[%clk 01:28:07]} {[%emt 00:00:46]} 6. b3 {[%clk 01:29:02]} {[%emt
00:01:17]} Bd6 {[%clk 01:27:56]} {[%emt 00:00:41]} 7. Bb2 {[%clk 01:29:19]}
{[%emt 00:00:13]} O-O {[%clk 01:28:09]} {[%emt 00:00:17]} 8. Nbd2 {[%clk
01:27:47]} {[%emt 00:02:01]} Re8 {[%clk 01:27:10]} {[%emt 00:01:30]} 9. Ne5
{[%clk 01:27:17]} {[%emt 00:01:01]} b6 {[%clk 01:18:13]} {[%emt 00:09:27]} 10.
f4 {[%clk 01:23:31]} {[%emt 00:04:15]} Ne4 {[%clk 01:17:29]} {[%emt 00:01:15]}
11. Nxe4 {[%clk 01:23:19]} {[%emt 00:00:41]} dxe4 {[%clk 01:17:34]} {[%emt
00:00:26]} 12. Bb5 {[%clk 01:20:28]} {[%emt 00:03:22]} Bxe5 {[%clk 01:16:30]}
{[%emt 00:01:34]} 13. dxe5 {[%clk 01:20:21]} {[%emt 00:00:37]} Qc7 {[%clk
01:16:20]} {[%emt 00:00:40]} 14. Qe2 {[%clk 01:18:25]} {[%emt 00:02:24]} a6
{[%clk 01:16:11]} {[%emt 00:00:41]} 15. Bxd7 {[%clk 01:18:48]} {[%emt
00:00:07]} Bxd7 {[%clk 01:16:26]} {[%emt 00:00:15]} 16. Rfd1 {[%clk 01:18:55]}
{[%emt 00:00:22]} Bb5 {[%clk 01:13:44]} {[%emt 00:03:13]} 17. c4 {[%clk
01:18:58]} {[%emt 00:00:26]} Bc6 {[%clk 01:14:11]} {[%emt 00:00:03]} 18. Rd6
{[%clk 01:17:51]} {[%emt 00:01:36]} a5 {[%clk 01:07:51]} {[%emt 00:06:50]}
1/2-1/2

[Event "ONJK 2024 ABC"]
[Site "Velp, Netherlands"]
[Date "2024.08.07"]
[Round "8.9"]
[White "Vertongen, Jack"]
[Black "Van Groning, Christian"]
[Result "1/2-1/2"]
[TimeControl "90 minutes + 30 seconds"]
[WhiteElo "1674"]
[BlackElo "1778"]

1. c4 {[%clk 01:30:59]} e5 {[%clk 01:30:53]} {[%emt 00:00:07]} 2. Nc3 {[%clk
01:31:26]} {[%emt 00:00:04]} Nf6 {[%clk 01:31:17]} {[%emt 00:00:06]} 3. Nf3
{[%clk 01:31:52]} {[%emt 00:00:04]} Nc6 {[%clk 01:31:40]} {[%emt 00:00:06]} 4.
e3 {[%clk 01:32:17]} {[%emt 00:00:04]} Bb4 {[%clk 01:32:01]} {[%emt 00:00:09]}
5. Qb3 {[%clk 01:32:37]} {[%emt 00:00:11]} Bxc3 {[%clk 01:31:45]} {[%emt
00:00:46]} 6. Qxc3 {[%clk 01:33:06]} {[%emt 00:00:02]} d6 {[%clk 01:32:08]}
{[%emt 00:00:06]} 7. d4 {[%clk 01:33:28]} {[%emt 00:00:08]} e4 {[%clk
01:32:31]} {[%emt 00:00:07]} 8. Nd2 {[%clk 01:33:44]} {[%emt 00:00:14]} Bf5
{[%clk 01:32:26]} {[%emt 00:00:35]} 9. b3 {[%clk 01:30:46]} {[%emt 00:03:29]}
O-O {[%clk 01:31:23]} {[%emt 00:01:32]} 10. Bb2 {[%clk 01:30:48]} {[%emt
00:00:28]} d5 {[%clk 01:31:12]} {[%emt 00:00:41]} 11. Be2 {[%clk 01:28:54]}
{[%emt 00:02:24]} Qd6 {[%emt 00:11:11]} 12. a4 {[%clk 01:19:25]} Rfe8 {[%clk
01:28:28]} {[%emt 00:02:31]} 13. Ba3 {[%clk 01:17:19]} {[%emt 00:02:36]} Qe6
{[%clk 01:28:14]} {[%emt 00:00:44]} 14. h3 {[%clk 01:15:50]} {[%emt 00:01:59]}
a5 {[%clk 01:27:38]} {[%emt 00:01:07]} 15. Nf1 {[%clk 01:09:19]} {[%emt
00:07:01]} Bg6 {[%emt 00:05:22]} 16. Ng3 {[%clk 01:08:30]} h5 {[%clk 01:24:11]}
{[%emt 00:00:23]} 17. h4 {[%clk 01:07:43]} {[%emt 00:01:17]} Ng4 {[%clk
01:24:31]} {[%emt 00:00:10]} 18. cxd5 {[%clk 00:59:19]} {[%emt 00:08:54]} Qxd5
{[%clk 01:24:40]} {[%emt 00:00:21]} 19. Bxg4 {[%clk 00:59:25]} {[%emt
00:00:23]} hxg4 {[%clk 01:25:00]} {[%emt 00:00:10]} 20. Qc4 {[%clk 00:59:19]}
{[%emt 00:00:37]} Qxc4 {[%clk 01:24:00]} {[%emt 00:01:30]} 21. bxc4 {[%clk
00:59:46]} {[%emt 00:00:04]} Nb4 {[%clk 01:24:23]} {[%emt 00:00:06]} 22. Bxb4
{[%clk 00:59:46]} {[%emt 00:00:30]} axb4 {[%clk 01:24:44]} {[%emt 00:00:10]} 23.
Ke2 {[%clk 00:59:18]} {[%emt 00:00:54]} b6 {[%clk 01:22:34]} {[%emt 00:02:44]}
24. h5 {[%clk 00:52:35]} {[%emt 00:07:13]} Bh7 {[%clk 01:22:53]} {[%emt
00:00:10]} 25. Nf1 {[%clk 00:52:04]} {[%emt 00:01:01]} Ra5 {[%clk 01:22:50]}
{[%emt 00:00:32]} 26. Nd2 {[%clk 00:40:18]} {[%emt 00:12:17]} Rea8 {[%clk
01:23:05]} {[%emt 00:00:15]} 27. Rhb1 {[%clk 00:39:50]} {[%emt 00:00:59]} Rxa4
{[%clk 01:23:12]} {[%emt 00:00:23]} 28. Rxa4 {[%clk 00:40:14]} {[%emt
00:00:06]} Rxa4 {[%clk 01:23:38]} {[%emt 00:00:04]} 29. d5 {[%clk 00:40:23]}
{[%emt 00:00:20]} Kf8 {[%clk 01:23:55]} {[%emt 00:00:13]} 30. Kd1 {[%clk
00:37:37]} {[%emt 00:03:16]} Ke7 {[%clk 01:23:59]} {[%emt 00:00:26]} 31. Kc2
{[%clk 00:37:47]} {[%emt 00:00:20]} Ra2+ {[%clk 01:23:49]} {[%emt 00:00:40]} 32.
Rb2 {[%clk 00:37:43]} {[%emt 00:01:06]} 1/2-1/2

[Event "ONJK 2024 ABC"]
[Site "Velp, Netherlands"]
[Date "2024.08.07"]
[Round "8.10"]
[White "De Rycke, Killian"]
[Black "Helderman, Faas"]
[Result "0-1"]
[TimeControl "90 minutes + 30 seconds"]
[WhiteElo "1751"]
[BlackElo "1603"]

1. e4 {[%clk 01:30:55]} {[%emt 00:00:05]} c6 {[%clk 01:30:52]} {[%emt
00:00:08]} 2. d4 {[%clk 01:31:16]} {[%emt 00:00:09]} d5 {[%clk 01:31:13]}
{[%emt 00:00:08]} 3. exd5 {[%clk 01:31:41]} {[%emt 00:00:06]} cxd5 {[%clk
01:31:33]} {[%emt 00:00:09]} 4. Bd3 {[%clk 01:32:05]} {[%emt 00:00:07]} Nc6
{[%clk 01:31:49]} {[%emt 00:00:14]} 5. c3 {[%clk 01:32:15]} {[%emt 00:00:20]}
Nf6 {[%clk 01:32:03]} {[%emt 00:00:14]} 6. Ne2 {[%clk 01:31:55]} {[%emt
00:00:51]} e6 {[%clk 01:30:09]} {[%emt 00:02:23]} 7. Bf4 {[%clk 01:31:41]}
{[%emt 00:00:46]} Bd6 {[%clk 01:29:37]} {[%emt 00:01:02]} 8. Nd2 {[%clk
01:31:09]} {[%emt 00:01:02]} O-O {[%clk 01:27:48]} {[%emt 00:02:18]} 9. O-O
{[%clk 01:30:35]} {[%emt 00:01:04]} a6 {[%clk 01:25:55]} {[%emt 00:02:24]} 10.
Nf3 {[%clk 01:29:19]} {[%emt 00:01:45]} Bxf4 {[%clk 01:23:46]} {[%emt
00:02:39]} 11. Nxf4 {[%clk 01:29:37]} {[%emt 00:00:13]} b5 {[%clk 01:19:34]}
{[%emt 00:04:41]} 12. Re1 {[%clk 01:28:37]} {[%emt 00:01:31]} Rb8 {[%clk
01:10:10]} {[%emt 00:09:53]} 13. Ne5 {[%clk 01:27:30]} {[%emt 00:01:38]} Qd6
{[%clk 01:08:33]} {[%emt 00:02:02]} 14. Qf3 {[%clk 01:13:18]} {[%emt 00:14:46]}
b4 {[%clk 01:02:16]} {[%emt 00:06:47]} 15. Nh5 {[%clk 01:00:20]} {[%emt
00:13:29]} Nxh5 {[%clk 00:53:47]} {[%emt 00:08:59]} 16. Qxh5 {[%clk 01:00:26]}
{[%emt 00:00:25]} h6 {[%clk 00:52:04]} {[%emt 00:02:08]} 17. Re3 {[%clk
00:54:02]} {[%emt 00:06:58]} Nxe5 {[%clk 00:49:19]} {[%emt 00:03:14]} 18. dxe5
{[%clk 00:42:12]} {[%emt 00:12:21]} Qe7 {[%clk 00:46:23]} {[%emt 00:03:24]} 19.
Rg3 {[%clk 00:40:41]} {[%emt 00:02:03]} Kh8 {[%clk 00:46:17]} {[%emt 00:00:33]}
20. Rg6 {[%clk 00:34:18]} {[%emt 00:06:56]} fxg6 {[%clk 00:31:34]} {[%emt
00:15:13]} 21. Qxg6 {[%clk 00:34:02]} {[%emt 00:00:46]} Rf5 {[%clk 00:31:52]}
{[%emt 00:00:11]} 22. g4 {[%clk 00:18:02]} {[%emt 00:16:31]} Qg5 {[%clk
00:31:11]} {[%emt 00:01:10]} 23. Qe8+ {[%clk 00:16:28]} {[%emt 00:02:05]} Kh7
{[%clk 00:31:18]} {[%emt 00:00:22]} 24. h3 {[%clk 00:15:11]} {[%emt 00:01:48]}
g6 {[%clk 00:24:33]} {[%emt 00:07:13]} 25. Bxf5 {[%clk 00:13:57]} {[%emt
00:01:46]} gxf5 {[%emt 00:06:37]} 26. f4 {[%clk 00:08:48]} Qg7 {[%clk
00:22:52]} {[%emt 00:01:41]} 27. g5 {[%clk 00:06:43]} {[%emt 00:02:37]} bxc3
{[%clk 00:18:12]} {[%emt 00:05:09]} 28. bxc3 {[%clk 00:05:25]} {[%emt
00:01:50]} a5 {[%clk 00:12:54]} {[%emt 00:05:47]} 29. h4 {[%clk 00:04:59]}
{[%emt 00:00:56]} Qa7+ {[%clk 00:10:20]} {[%emt 00:03:02]} 30. Kh1 {[%clk
00:04:37]} {[%emt 00:00:55]} d4 {[%clk 00:08:06]} {[%emt 00:02:42]} 31. g6+
{[%clk 00:02:41]} {[%emt 00:02:28]} Kg7 {[%clk 00:08:26]} {[%emt 00:00:08]} 32.
Qf7+ {[%clk 00:01:53]} {[%emt 00:01:20]} Qxf7 {[%clk 00:08:46]} {[%emt
00:00:10]} 33. gxf7 {[%clk 00:02:21]} {[%emt 00:00:02]} Kxf7 {[%clk 00:08:36]}
{[%emt 00:00:38]} 34. cxd4 {[%clk 00:02:46]} {[%emt 00:00:07]} Bb7+ {[%clk
00:08:34]} {[%emt 00:00:32]} 35. Kh2 {[%clk 00:01:28]} {[%emt 00:01:48]} Bd5
{[%clk 00:08:49]} {[%emt 00:00:13]} 36. a3 {[%clk 00:01:37]} {[%emt 00:00:23]}
Rb2+ {[%clk 00:08:54]} {[%emt 00:00:23]} 37. Kg3 {[%clk 00:01:46]} {[%emt
00:00:22]} Kg6 {[%clk 00:08:27]} {[%emt 00:00:55]} 38. Kh3 {[%clk 00:01:30]}
{[%emt 00:00:46]} Rd2 {[%clk 00:08:17]} {[%emt 00:00:41]} 39. Rc1 {[%clk
00:01:14]} {[%emt 00:00:47]} Rxd4 {[%clk 00:08:18]} {[%emt 00:00:29]} 40. Rc8
{[%clk 00:00:44]} {[%emt 00:01:00]} Rxf4 {[%clk 00:08:07]} {[%emt 00:00:40]} 41.
Rf8 {[%clk 00:00:55]} {[%emt 00:00:18]} Re4 {[%emt 00:01:04]} 42. Rf6+ {[%clk
00:01:06]} Kg7 {[%clk 00:08:11]} {[%emt 00:00:12]} 43. h5 {[%clk 00:01:15]}
{[%emt 00:00:22]} Rxe5 {[%clk 00:08:07]} {[%emt 00:00:34]} 44. Rg6+ {[%clk
00:01:36]} {[%emt 00:00:10]} Kh7 {[%clk 00:08:21]} {[%emt 00:00:14]} 45. Rf6
{[%clk 00:01:52]} {[%emt 00:00:15]} Re3+ {[%clk 00:08:22]} {[%emt 00:00:28]} 46.
Kh4 {[%clk 00:02:11]} {[%emt 00:00:12]} Bg2 {[%clk 00:07:47]} {[%emt 00:01:02]}
47. Rf7+ {[%clk 00:02:17]} {[%emt 00:00:28]} Kg8 {[%clk 00:07:58]} {[%emt
00:00:16]} 48. a4 {[%clk 00:02:30]} {[%emt 00:00:20]} Rh3# {[%clk 00:07:46]}
{[%emt 00:00:08]} 0-1

[Event "ONJK 2024 ABC"]
[Site "Velp, Netherlands"]
[Date "2024.08.07"]
[Round "8.11"]
[White "Henckens, Elof"]
[Black "Hagen, Carlijn"]
[Result "1-0"]
[TimeControl "90 minutes + 30 seconds"]
[WhiteElo "1707"]
[BlackElo "1645"]

1. d4 {[%clk 01:30:59]} {[%emt 00:00:01]} d5 {[%clk 01:30:54]} {[%emt
00:00:07]} 2. Bf4 {[%clk 01:31:27]} Nf6 {[%clk 01:31:02]} {[%emt 00:00:21]} 3.
e3 {[%clk 01:31:42]} {[%emt 00:00:15]} Bf5 {[%clk 01:31:26]} {[%emt 00:00:06]}
4. c4 {[%clk 01:27:55]} {[%emt 00:04:16]} e6 {[%clk 01:30:07]} {[%emt
00:01:50]} 5. Qb3 {[%clk 01:26:42]} {[%emt 00:01:43]} Qc8 {[%clk 01:29:16]}
{[%emt 00:01:21]} 6. Nc3 {[%clk 01:26:21]} {[%emt 00:00:51]} c6 {[%clk
01:29:08]} {[%emt 00:00:39]} 7. h3 {[%clk 01:24:40]} {[%emt 00:02:10]} Nbd7
{[%clk 01:27:57]} {[%emt 00:01:41]} 8. Nf3 {[%clk 01:24:18]} {[%emt 00:00:52]}
Ne4 {[%clk 01:27:21]} {[%emt 00:01:06]} 9. Nh4 {[%clk 01:21:13]} {[%emt
00:03:34]} Ndf6 {[%clk 01:25:02]} {[%emt 00:02:49]} 10. Nxf5 {[%clk 01:20:51]}
{[%emt 00:00:53]} exf5 {[%clk 01:24:46]} {[%emt 00:00:47]} 11. cxd5 {[%clk
01:18:08]} {[%emt 00:03:13]} cxd5 {[%clk 01:24:46]} {[%emt 00:00:30]} 12. Bb5+
{[%clk 01:15:13]} {[%emt 00:03:25]} Nd7 {[%clk 01:17:35]} {[%emt 00:07:41]} 13.
Nxd5 {[%clk 01:09:25]} {[%emt 00:06:17]} Kd8 {[%clk 01:17:00]} {[%emt
00:01:07]} 14. Ke2 {[%clk 01:07:18]} {[%emt 00:02:35]} Bd6 {[%clk 01:15:03]}
{[%emt 00:02:27]} 15. Rac1 {[%clk 01:06:31]} {[%emt 00:01:18]} Qb8 {[%clk
01:15:10]} {[%emt 00:00:23]} 16. Rc7 {[%clk 01:05:05]} {[%emt 00:01:55]} Bxc7
{[%clk 01:14:33]} {[%emt 00:01:07]} 17. Bxc7+ {[%clk 01:05:27]} {[%emt
00:00:08]} Qxc7 {[%clk 01:14:59]} {[%emt 00:00:05]} 18. Nxc7 {[%clk 01:05:48]}
{[%emt 00:00:09]} Kxc7 {[%clk 01:15:24]} {[%emt 00:00:05]} 19. Qxf7 {[%clk
01:04:35]} {[%emt 00:01:42]} Nef6 {[%clk 01:14:51]} {[%emt 00:01:04]} 20. Rc1+
{[%clk 01:04:16]} {[%emt 00:00:49]} Kd8 {[%clk 01:14:47]} {[%emt 00:00:35]} 21.
Bxd7 {[%emt 00:02:18]} Nxd7 {[%clk 01:15:08]} {[%emt 00:00:06]} 22. Qxg7 {[%clk
01:02:36]} {[%emt 00:00:23]} Re8 {[%clk 01:15:11]} {[%emt 00:00:28]} 23. Qxh7
{[%clk 01:02:27]} {[%emt 00:00:38]} 1-0

[Event "ONJK 2024 ABC"]
[Site "Velp, Netherlands"]
[Date "2024.08.07"]
[Round "8.12"]
[White "Zhezheria, Maksym"]
[Black "Janssen, Thijn"]
[Result "1-0"]
[TimeControl "90 minutes + 30 seconds"]
[WhiteElo "1626"]
[BlackElo "1465"]

1. d4 {[%clk 01:30:57]} {[%emt 00:00:02]} d5 {[%clk 01:30:59]} {[%emt
00:00:02]} 2. c4 {[%clk 01:31:22]} {[%emt 00:00:05]} e6 {[%clk 01:31:28]}
{[%emt 00:00:02]} 3. Nc3 {[%clk 01:31:40]} {[%emt 00:00:11]} Nf6 {[%clk
01:31:57]} 4. Bg5 {[%clk 01:32:04]} {[%emt 00:00:07]} Bb4 {[%clk 01:32:18]}
{[%emt 00:00:08]} 5. Nf3 {[%clk 01:32:16]} {[%emt 00:00:17]} Nc6 {[%clk
01:31:24]} {[%emt 00:01:25]} 6. Ne5 {[%clk 01:32:35]} {[%emt 00:00:11]} h6
{[%clk 01:31:20]} {[%emt 00:00:34]} 7. Bh4 {[%clk 01:32:11]} {[%emt 00:00:55]}
Bd7 {[%clk 01:28:37]} {[%emt 00:03:13]} 8. e3 {[%clk 01:29:46]} {[%emt
00:02:54]} Nxe5 {[%clk 01:28:38]} {[%emt 00:00:28]} 9. dxe5 {[%clk 01:30:09]}
{[%emt 00:00:09]} g5 {[%clk 01:28:51]} {[%emt 00:00:16]} 10. Bxg5 {[%clk
01:28:00]} {[%emt 00:02:38]} hxg5 {[%clk 01:29:13]} {[%emt 00:00:08]} 11. exf6
{[%clk 01:28:22]} {[%emt 00:00:09]} dxc4 {[%clk 01:28:41]} {[%emt 00:01:02]} 12.
Bxc4 {[%clk 01:28:38]} {[%emt 00:00:14]} Qxf6 {[%clk 01:28:57]} {[%emt
00:00:14]} 13. Rc1 {[%clk 01:28:59]} {[%emt 00:00:09]} O-O-O {[%clk 01:29:00]}
{[%emt 00:00:27]} 14. Qb3 {[%clk 01:27:18]} {[%emt 00:02:12]} Bc5 {[%clk
01:23:13]} {[%emt 00:06:17]} 15. Ne4 {[%clk 01:24:25]} {[%emt 00:03:23]} Qe5
{[%clk 01:23:40]} {[%emt 00:00:02]} 16. Nxc5 {[%clk 01:24:47]} {[%emt
00:00:07]} Qxc5 {[%clk 01:23:59]} {[%emt 00:00:12]} 17. Ke2 {[%clk 01:24:42]}
{[%emt 00:00:35]} Qe5 {[%clk 01:23:01]} {[%emt 00:01:28]} 18. h3 {[%clk
01:22:41]} {[%emt 00:02:31]} Bc6 {[%clk 01:18:10]} {[%emt 00:05:19]} 19. Rhg1
{[%clk 01:20:56]} {[%emt 00:02:15]} Qg7 {[%clk 01:15:39]} {[%emt 00:03:02]} 20.
Ba6 {[%clk 01:16:42]} {[%emt 00:04:45]} g4 {[%clk 01:13:39]} {[%emt 00:02:30]}
21. Rxc6 {[%clk 01:12:50]} {[%emt 00:04:22]} bxa6 {[%clk 01:13:39]} {[%emt
00:00:30]} 22. Rxa6 {[%clk 01:07:29]} {[%emt 00:05:52]} gxh3 {[%clk 01:04:46]}
{[%emt 00:09:22]} 23. Rxa7 {[%clk 01:07:39]} {[%emt 00:00:20]} h2 {[%clk
01:04:26]} {[%emt 00:00:50]} 24. Qb7+ {[%clk 01:08:02]} {[%emt 00:00:08]} Kd7
{[%clk 01:04:46]} {[%emt 00:00:09]} 25. Qxc7+ {[%clk 01:08:29]} {[%emt
00:00:04]} 1-0